fUSD/lending_fUSD_20250618
["ID","MTS","AMOUNT","RATE_DAILY","PERIOD"]
[366377856,1750219878475,-151.0,0.00017014,2]
[366377857,1750219878485,-13709.0822495,0.00017018,2]
[366377858,1750219878495,-150.0,0.0001703,2]
[366377859,1750219878506,-464.2885002,0.0001705,2]
[366377860,1750219878516,-150.0,0.00017071,2]
[366377861,1750219878526,-500.0,0.00017073,2]
[366377862,1750219878536,-497.58910929,0.00017073,2]
[366377863,1750219878546,-500.0,0.00017073,2]
[366377864,1750219878555,-519.7129137,0.00017073,2]
[366377865,1750219878565,-501.34737539,0.00017073,2]
[366377866,1750219878575,-500.5951532,0.00017073,2]
[366377867,1750219878584,-505.49621904,0.00017073,2]
[366377868,1750219878594,-500.0,0.00017073,2]
[366377869,1750219878603,-217.0352638,0.00017073,2]
[366377870,1750219878613,-419.30854706,0.00017073,2]
[366377871,1750219878622,-299.7432764,0.00017073,2]
[366377872,1750219878632,-500.0,0.00017073,2]
[366377873,1750219878642,-503.14987896,0.00017073,2]
[366377874,1750219878652,-501.30402732,0.00017073,2]
[366377875,1750219878662,-500.0,0.00017073,2]
[366377876,1750219878672,-500.0,0.00017073,2]
[366377877,1750219878682,-500.0,0.00017073,2]
[366377878,1750219878692,-500.0,0.00017073,2]
[366377879,1750219878702,-500.0,0.00017073,2]
[366377880,1750219878713,-500.0,0.00017073,2]
[366377881,1750219878722,-500.0,0.00017073,2]
[366377882,1750219878736,-500.0,0.00017073,2]
[366377883,1750219878746,-156.50813011,0.00017092,2]
[366377884,1750219878755,-1001.0728,0.00017094,2]
[366377885,1750219878765,-1000.0,0.00017094,2]
[366377886,1750219878776,-1000.0,0.00017094,2]
[366377887,1750219878787,-3107.14,0.00017094,2]
[366377888,1750219878797,-3107.14,0.00017094,2]
[366377889,1750219878808,-3107.14,0.00017094,2]
[366377890,1750219878817,-3107.14,0.00017094,2]
[366377891,1750219878827,-300.0,0.00017094,2]
[366377892,1750219878837,-4949.82879868,0.00017095,2]
[366377893,1750219878846,-133514.97078781,0.00017095,2]
[366377894,1750219878856,-210.01203,0.00017095,2]
[366377895,1750219878866,-490.0,0.00017095,2]
[366377896,1750219878875,-828.691304,0.00017095,2]
[366377897,1750219878885,-243.371409,0.00017095,2]
[366377898,1750219878894,-490.0,0.00017095,2]
[366377899,1750219878904,-490.0,0.00017095,2]
[366377900,1750219878913,-490.0,0.00017095,2]
[366377901,1750219878923,-783.57,0.00017095,2]
[366377902,1750219878932,-599.13,0.00017095,2]
[366377903,1750219878941,-536.74,0.00017095,2]
[366377904,1750219878951,-490.0,0.00017095,2]
[366377905,1750219878960,-692.07,0.00017095,2]
[366377906,1750219878969,-490.0,0.00017095,2]
[366377907,1750219878979,-694.2,0.00017095,2]
[366377908,1750219878988,-440.39010243,0.00017095,2]
[366377909,1750219878998,-582.11,0.00017095,2]
[366377910,1750219879007,-514.07,0.00017095,2]
[366377911,1750219879017,-803.78,0.00017095,2]
[366377912,1750219879027,-490.0,0.00017095,2]
[366377913,1750219879037,-490.0,0.00017095,2]
[366377914,1750219879046,-1323.31,0.00017095,2]
[366377915,1750219879056,-946.44,0.00017095,2]
[366377916,1750219879066,-490.0,0.00017095,2]
[366377917,1750219879076,-490.62,0.00017095,2]
[366377918,1750219879085,-440.72622159,0.00017095,2]
[366377919,1750219879095,-1344.44,0.00017095,2]
[366377920,1750219879104,-490.0,0.00017095,2]
[366377921,1750219879114,-1227.08,0.00017095,2]
[366377922,1750219879123,-490.0,0.00017095,2]
[366377923,1750219879133,-490.0,0.00017095,2]
[366377924,1750219879143,-490.0,0.00017095,2]
[366377925,1750219879152,-490.0,0.00017095,2]
[366377926,1750219879161,-490.0,0.00017095,2]
[366377927,1750219879171,-490.0,0.00017095,2]
[366377928,1750219879180,-490.0,0.00017095,2]
[366377929,1750219879190,-490.0,0.00017095,2]
[366377930,1750219879200,-512.34,0.00017095,2]
[366377931,1750219879210,-490.0,0.00017095,2]
[366377932,1750219879219,-490.0,0.00017095,2]
[366377933,1750219879229,-490.0,0.00017095,2]
[366377934,1750219879239,-490.0,0.00017095,2]
[366377935,1750219879249,-689.41,0.00017095,2]
[366377936,1750219879259,-490.0,0.00017095,2]
[366377937,1750219879268,-490.0,0.00017095,2]
[366377938,1750219879279,-490.0,0.00017095,2]
[366377939,1750219879289,-1498.29,0.00017095,2]
[366377940,1750219879298,-490.0,0.00017095,2]
[366377941,1750219879308,-490.0,0.00017095,2]
[366377942,1750219879318,-923.47,0.00017095,2]
[366377943,1750219879328,-490.0,0.00017095,2]
[366377944,1750219879338,-1096.18,0.00017095,2]
[366377945,1750219879347,-791.61,0.00017095,2]
[366377946,1750219879357,-447.51943802,0.00017095,2]
[366377947,1750219879367,-606.2,0.00017095,2]
[366377948,1750219879376,-276.60929436,0.00017095,2]
[366377949,1750219879388,-677.0,0.00017095,2]
[366377950,1750219879397,-490.0,0.00017095,2]
[366377951,1750219879407,-493.99,0.00017095,2]
[366377952,1750219879417,-490.0,0.00017095,2]
[366377953,1750219879427,-657.73,0.00017095,2]
[366377954,1750219879436,-959.0,0.00017095,2]
[366377955,1750219879446,-490.0,0.00017095,2]
[366377956,1750219879456,-1085.35,0.00017095,2]
[366377957,1750219879465,-668.67,0.00017095,2]
[366377958,1750219879475,-1641.34,0.00017095,2]
[366377959,1750219879485,-826.71,0.00017095,2]
[366377960,1750219879495,-490.0,0.00017095,2]
[366377961,1750219879505,-581.52,0.00017095,2]
[366377962,1750219879515,-679.08,0.00017095,2]
[366377963,1750219879525,-490.0,0.00017095,2]
[366377964,1750219879534,-490.0,0.00017095,2]
[366377965,1750219879544,-490.0,0.00017095,2]
[366377966,1750219879554,-704.99,0.00017095,2]
[366377967,1750219879563,-1154.79,0.00017095,2]
[366377968,1750219879574,-490.0,0.00017095,2]
[366377969,1750219879583,-490.0,0.00017095,2]
[366377970,1750219879593,-797.49,0.00017095,2]
[366377971,1750219879603,-490.0,0.00017095,2]
[366377972,1750219879613,-810.13,0.00017095,2]
[366377973,1750219879623,-1247.03,0.00017095,2]
[366377974,1750219879633,-490.0,0.00017095,2]
[366377975,1750219879642,-636.21,0.00017095,2]
[366377976,1750219879651,-490.0,0.00017095,2]
[366377977,1750219879661,-490.0,0.00017095,2]
[366377978,1750219879671,-942.77,0.00017095,2]
[366377979,1750219879680,-545.07,0.00017095,2]
[366377980,1750219879691,-538.89,0.00017095,2]
[366377981,1750219879701,-490.0,0.00017095,2]
[366377982,1750219879710,-490.0,0.00017095,2]
[366377983,1750219879720,-490.0,0.00017095,2]
[366377984,1750219879858,-490.0,0.00017095,2]
[366377985,1750219879870,-680.48,0.00017095,2]
[366377986,1750219879879,-1033.96,0.00017095,2]
[366377987,1750219879888,-490.0,0.00017095,2]
[366377988,1750219879898,-1289.15,0.00017095,2]
[366377989,1750219879908,-468.63531051,0.00017095,2]
[366377990,1750219879920,-704.44,0.00017095,2]
[366377991,1750219879930,-817.9,0.00017095,2]
[366377992,1750219879940,-1087.91,0.00017095,2]
[366377993,1750219879950,-490.0,0.00017095,2]
[366377994,1750219879959,-676.11,0.00017095,2]
[366377995,1750219879969,-490.0,0.00017095,2]
[366377996,1750219879979,-551.32,0.00017095,2]
[366377997,1750219879989,-490.0,0.00017095,2]
[366377998,1750219879999,-490.0,0.00017095,2]
[366377999,1750219880008,-490.0,0.00017095,2]
[366378000,1750219880018,-490.0,0.00017095,2]
[366378001,1750219880028,-491.18,0.00017095,2]
[366378002,1750219880038,-1115.52,0.00017095,2]
[366378003,1750219880048,-490.0,0.00017095,2]
[366378004,1750219880057,-495.81,0.00017095,2]
[366378005,1750219880067,-490.0,0.00017095,2]
[366378006,1750219880077,-289.21,0.00017095,2]
[366378007,1750219880086,-490.0,0.00017095,2]
[366378008,1750219880096,-490.0,0.00017095,2]
[366378009,1750219880105,-490.0,0.00017095,2]
[366378010,1750219880115,-308.96898361,0.00017095,2]
[366378011,1750219880125,-490.0,0.00017095,2]
[366378012,1750219880134,-490.0,0.00017095,2]
[366378013,1750219880144,-490.0,0.00017095,2]
[366378014,1750219880154,-490.0,0.00017095,2]
[366378015,1750219880164,-539.19,0.00017095,2]
[366378016,1750219880174,-632.96,0.00017095,2]
[366378017,1750219880183,-490.0,0.00017095,2]
[366378018,1750219880193,-490.0,0.00017095,2]
[366378019,1750219880203,-1078.26,0.00017095,2]
[366378020,1750219880213,-490.0,0.00017095,2]
[366378021,1750219880223,-619.24,0.00017095,2]
[366378022,1750219880232,-1013.14,0.00017095,2]
[366378023,1750219880242,-490.0,0.00017095,2]
[366378024,1750219880251,-490.0,0.00017095,2]
[366378025,1750219880262,-300.0,0.00017095,2]
[366378026,1750219880271,-696.28,0.00017095,2]
[366378027,1750219880281,-884.55,0.00017095,2]
[366378028,1750219880291,-490.0,0.00017095,2]
[366378029,1750219880301,-490.0,0.00017095,2]
[366378030,1750219880311,-978.75,0.00017095,2]
[366378031,1750219880320,-917.1,0.00017095,2]
[366378032,1750219880330,-490.0,0.00017095,2]
[366378033,1750219880340,-490.0,0.00017095,2]
[366378034,1750219880349,-698.59,0.00017095,2]
[366378035,1750219880359,-749.72,0.00017095,2]
[366378036,1750219880370,-490.0,0.00017095,2]
[366378037,1750219880380,-490.0,0.00017095,2]
[366378038,1750219880390,-490.0,0.00017095,2]
[366378039,1750219880400,-809.38,0.00017095,2]
[366378040,1750219880410,-151.0,0.00017095,2]
[366378041,1750219880421,-151.0,0.00017095,2]
[366378042,1750219880431,-611.98,0.00017095,2]
[366378043,1750219880441,-490.0,0.00017095,2]
[366378044,1750219880450,-490.0,0.00017095,2]
[366378045,1750219880460,-1434.56,0.00017095,2]
[366378046,1750219880471,-151.0,0.00017095,2]
[366378047,1750219880480,-151.0,0.00017095,2]
[366378048,1750219880490,-490.0,0.00017095,2]
[366378049,1750219880502,-490.0,0.00017095,2]
[366378050,1750219880512,-646.25,0.00017095,2]
[366378051,1750219880523,-490.0,0.00017095,2]
[366378052,1750219880532,-490.0,0.00017095,2]
[366378053,1750219880541,-490.0,0.00017095,2]
[366378054,1750219880552,-522.81,0.00017095,2]
[366378055,1750219880561,-733.24,0.00017095,2]
[366378056,1750219880571,-627.62,0.00017095,2]
[366378057,1750219880580,-1268.82,0.00017095,2]
[366378058,1750219880590,-848.35,0.00017095,2]
[366378059,1750219880599,-1756.93,0.00017095,2]
[366378060,1750219880609,-1483.43,0.00017095,2]
[366378061,1750219880620,-490.0,0.00017095,2]
[366378062,1750219880630,-490.0,0.00017095,2]
[366378063,1750219880639,-1754.88,0.00017095,2]
[366378064,1750219880649,-553.97,0.00017095,2]
[366378065,1750219880659,-490.0,0.00017095,2]
[366378066,1750219880669,-490.0,0.00017095,2]
[366378067,1750219880678,-490.0,0.00017095,2]
[366378068,1750219880688,-490.0,0.00017095,2]
[366378069,1750219880698,-785.51,0.00017095,2]
[366378070,1750219880707,-408.92734071,0.00017095,2]
[366378071,1750219880717,-490.0,0.00017095,2]
[366378072,1750219880727,-774.68,0.00017095,2]
[366378073,1750219880739,-490.0,0.00017095,2]
[366378074,1750219880749,-1119.83,0.00017095,2]
[366378075,1750219880759,-490.0,0.00017095,2]
[366378076,1750219880768,-591.91,0.00017095,2]
[366378077,1750219880780,-784.39,0.00017095,2]
[366378078,1750219880790,-577.1,0.00017095,2]
[366378079,1750219880799,-490.0,0.00017095,2]
[366378080,1750219880810,-490.0,0.00017095,2]
[366378081,1750219880821,-935.27,0.00017095,2]
[366378082,1750219880831,-1293.32,0.00017095,2]
[366378083,1750219880841,-490.0,0.00017095,2]
[366378084,1750219880851,-541.77916553,0.00017095,2]
[366378085,1750219880861,-490.0,0.00017095,2]
[366378086,1750219880872,-219.56191022,0.00017095,2]
[366378087,1750219880882,-1082.29,0.00017095,2]
[366378088,1750219880892,-490.0,0.00017095,2]
[366378089,1750219880902,-511.2657037,0.00017095,2]
[366378090,1750219880911,-897.18,0.00017095,2]
[366378091,1750219880921,-1160.83,0.00017095,2]
[366378092,1750219880930,-683.62,0.00017095,2]
[366378093,1750219880939,-490.0,0.00017095,2]
[366378094,1750219880949,-490.0,0.00017095,2]
[366378095,1750219880959,-614.22,0.00017095,2]
[366378096,1750219880969,-490.0,0.00017095,2]
[366378097,1750219880979,-490.0,0.00017095,2]
[366378098,1750219880989,-490.0,0.00017095,2]
[366378099,1750219880999,-1549.11,0.00017095,2]
[366378100,1750219881008,-490.0,0.00017095,2]
[366378101,1750219881019,-490.0,0.00017095,2]
[366378102,1750219881029,-490.0,0.00017095,2]
[366378103,1750219881038,-534.42,0.00017095,2]
[366378104,1750219881048,-709.59,0.00017095,2]
[366378105,1750219881058,-524.6,0.00017095,2]
[366378106,1750219881067,-490.0,0.00017095,2]
[366378107,1750219881077,-490.0,0.00017095,2]
[366378108,1750219881086,-490.0,0.00017095,2]
[366378109,1750219881096,-620.64,0.00017095,2]
[366378110,1750219881106,-495.42,0.00017095,2]
[366378111,1750219881116,-628.17,0.00017095,2]
[366378112,1750219881126,-1658.57,0.00017095,2]
[366378113,1750219881136,-570.41,0.00017095,2]
[366378114,1750219881146,-1050.39,0.00017095,2]
[366378115,1750219881158,-699.89,0.00017095,2]
[366378116,1750219881167,-490.0,0.00017095,2]
[366378117,1750219881177,-2019.49,0.00017095,2]
[366378118,1750219881186,-656.38,0.00017095,2]
[366378119,1750219881196,-1101.94,0.00017095,2]
[366378120,1750219881206,-1530.42,0.00017095,2]
[366378121,1750219881215,-520.95,0.00017095,2]
[366378122,1750219881225,-490.0,0.00017095,2]
[366378123,1750219881234,-490.0,0.00017095,2]
[366378124,1750219881243,-1432.15,0.00017095,2]
[366378125,1750219881253,-1927.2,0.00017095,2]
[366378126,1750219881262,-490.0,0.00017095,2]
[366378127,1750219881271,-620.19,0.00017095,2]
[366378128,1750219881281,-500.33,0.00017095,2]
[366378129,1750219881290,-490.0,0.00017095,2]
[366378130,1750219881300,-490.0,0.00017095,2]
[366378131,1750219881309,-1133.62,0.00017095,2]
[366378132,1750219881319,-751.51,0.00017095,2]
[366378133,1750219881329,-490.0,0.00017095,2]
[366378134,1750219881338,-490.0,0.00017095,2]
[366378135,1750219881348,-490.0,0.00017095,2]
[366378136,1750219881357,-490.0,0.00017095,2]
[366378137,1750219881367,-490.0,0.00017095,2]
[366378138,1750219881377,-2648.9,0.00017095,2]
[366378139,1750219881387,-490.0,0.00017095,2]
[366378140,1750219881397,-2230.47,0.00017095,2]
[366378141,1750219881407,-791.03,0.00017095,2]
[366378142,1750219881417,-490.0,0.00017095,2]
[366378143,1750219881426,-490.0,0.00017095,2]
[366378144,1750219881435,-717.4,0.00017095,2]
[366378145,1750219881444,-490.0,0.00017095,2]
[366378146,1750219881452,-490.0,0.00017095,2]
[366378147,1750219881462,-490.0,0.00017095,2]
[366378148,1750219881473,-490.0,0.00017095,2]
[366378149,1750219881482,-490.0,0.00017095,2]
[366378150,1750219881492,-490.0,0.00017095,2]
[366378151,1750219881502,-2495.95,0.00017095,2]
[366378152,1750219881511,-490.0,0.00017095,2]
[366378153,1750219881520,-508.56,0.00017095,2]
[366378154,1750219881530,-490.0,0.00017095,2]
[366378155,1750219881540,-685.14,0.00017095,2]
[366378156,1750219881549,-443.4996311,0.00017095,2]
[366378157,1750219881559,-490.0,0.00017095,2]
[366378158,1750219881568,-490.0,0.00017095,2]
[366378159,1750219881578,-490.0,0.00017095,2]
[366378160,1750219881588,-603.79,0.00017095,2]
[366378161,1750219881599,-867.73,0.00017095,2]
[366378162,1750219881609,-651.29,0.00017095,2]
[366378163,1750219881619,-1680.55,0.00017095,2]
[366378164,1750219881630,-1523.96,0.00017095,2]
[366378165,1750219881640,-508.39,0.00017095,2]
[366378166,1750219881650,-490.0,0.00017095,2]
[366378167,1750219881659,-490.0,0.00017095,2]
[366378168,1750219881669,-490.0,0.00017095,2]
[366378169,1750219881679,-490.0,0.00017095,2]
[366378170,1750219881689,-710.89,0.00017095,2]
[366378171,1750219881699,-1307.08,0.00017095,2]
[366378172,1750219881709,-630.71,0.00017095,2]
[366378173,1750219881719,-490.0,0.00017095,2]
[366378174,1750219881733,-1053.54,0.00017095,2]
[366378175,1750219881743,-1281.69,0.00017095,2]
[366378176,1750219881753,-490.0,0.00017095,2]
[366378177,1750219881762,-2017.0,0.00017095,2]
[366378178,1750219881773,-606.52,0.00017095,2]
[366378179,1750219881783,-490.0,0.00017095,2]
[366378180,1750219881793,-490.0,0.00017095,2]
[366378181,1750219881804,-2019.24,0.00017095,2]
[366378182,1750219881814,-490.0,0.00017095,2]
[366378183,1750219881824,-490.0,0.00017095,2]
[366378184,1750219881834,-151.0,0.00017095,2]
[366378185,1750219881844,-151.0,0.00017095,2]
[366378186,1750219881854,-490.0,0.00017095,2]
[366378187,1750219881865,-490.0,0.00017095,2]
[366378188,1750219881875,-1251.81,0.00017095,2]
[366378189,1750219881884,-151.0,0.00017095,2]
[366378190,1750219881894,-151.0,0.00017095,2]
[366378191,1750219881903,-556.23,0.00017095,2]
[366378192,1750219881913,-490.0,0.00017095,2]
[366378193,1750219881922,-490.0,0.00017095,2]
[366378194,1750219881932,-607.21,0.00017095,2]
[366378195,1750219881942,-490.0,0.00017095,2]
[366378196,1750219881952,-1480.22,0.00017095,2]
[366378197,1750219881962,-451.96909018,0.00017095,2]
[366378198,1750219881972,-490.0,0.00017095,2]
[366378199,1750219881982,-568.82,0.00017095,2]
[366378200,1750219881991,-490.0,0.00017095,2]
[366378201,1750219882001,-490.0,0.00017095,2]
[366378202,1750219882010,-1685.96,0.00017095,2]
[366378203,1750219882020,-899.74,0.00017095,2]
[366378204,1750219882030,-490.0,0.00017095,2]
[366378205,1750219882040,-490.0,0.00017095,2]
[366378206,1750219882050,-151.0,0.00017095,2]
[366378207,1750219882060,-151.0,0.00017095,2]
[366378208,1750219882069,-490.0,0.00017095,2]
[366378209,1750219882079,-490.0,0.00017095,2]
[366378210,1750219882089,-490.0,0.00017095,2]
[366378211,1750219882099,-1576.42,0.00017095,2]
[366378212,1750219882109,-876.4,0.00017095,2]
[366378213,1750219882118,-608.39,0.00017095,2]
[366378214,1750219882128,-603.89,0.00017095,2]
[366378215,1750219882138,-1075.03,0.00017095,2]
[366378216,1750219882147,-490.0,0.00017095,2]
[366378217,1750219882157,-490.0,0.00017095,2]
[366378218,1750219882166,-2131.18,0.00017095,2]
[366378219,1750219882176,-2448.84,0.00017095,2]
[366378220,1750219882186,-937.26,0.00017095,2]
[366378221,1750219882195,-490.0,0.00017095,2]
[366378222,1750219882205,-692.46,0.00017095,2]
[366378223,1750219882215,-490.0,0.00017095,2]
[366378224,1750219882225,-1531.94,0.00017095,2]
[366378225,1750219882235,-2391.1,0.00017095,2]
[366378226,1750219882245,-490.0,0.00017095,2]
[366378227,1750219882255,-499.65,0.00017095,2]
[366378228,1750219882265,-490.0,0.00017095,2]
[366378229,1750219882275,-490.0,0.00017095,2]
[366378230,1750219882285,-828.71,0.00017095,2]
[366378231,1750219882295,-490.0,0.00017095,2]
[366378232,1750219882306,-937.04,0.00017095,2]
[366378233,1750219882317,-490.0,0.00017095,2]
[366378234,1750219882327,-490.0,0.00017095,2]
[366378235,1750219882337,-545.36,0.00017095,2]
[366378236,1750219882347,-490.0,0.00017095,2]
[366378237,1750219882357,-1175.81,0.00017095,2]
[366378238,1750219882367,-1574.12,0.00017095,2]
[366378239,1750219882378,-592.69,0.00017095,2]
[366378240,1750219882388,-490.0,0.00017095,2]
[366378241,1750219882398,-2287.17,0.00017095,2]
[366378242,1750219882408,-490.0,0.00017095,2]
[366378243,1750219882418,-562.58,0.00017095,2]
[366378244,1750219882429,-490.0,0.00017095,2]
[366378245,1750219882439,-219.54468713,0.00017095,2]
[366378246,1750219882448,-490.0,0.00017095,2]
[366378247,1750219882459,-548.72,0.00017095,2]
[366378248,1750219882469,-490.0,0.00017095,2]
[366378249,1750219882795,-558.0,0.00017095,2]
[366378250,1750219882830,-1259.73,0.00017095,2]
[366378251,1750219882840,-1113.8,0.00017095,2]
[366378252,1750219882849,-497.61,0.00017095,2]
[366378253,1750219882860,-1285.57,0.00017095,2]
[366378254,1750219882870,-733.75,0.00017095,2]
[366378255,1750219882880,-539.36,0.00017095,2]
[366378256,1750219882890,-490.0,0.00017095,2]
[366378257,1750219882900,-1918.62,0.00017095,2]
[366378258,1750219882909,-583.85,0.00017095,2]
[366378259,1750219882918,-1665.59,0.00017095,2]
[366378260,1750219882928,-1623.02,0.00017095,2]
[366378261,1750219882938,-151.0,0.00017095,2]
[366378262,1750219882947,-490.0,0.00017095,2]
[366378263,1750219882957,-490.0,0.00017095,2]
[366378264,1750219882966,-501.69,0.00017095,2]
[366378265,1750219882976,-1335.43,0.00017095,2]
[366378266,1750219882985,-667.17,0.00017095,2]
[366378267,1750219882995,-636.2,0.00017095,2]
[366378268,1750219883005,-490.0,0.00017095,2]
[366378269,1750219883014,-490.0,0.00017095,2]
[366378270,1750219883024,-632.5,0.00017095,2]
[366378271,1750219883033,-490.0,0.00017095,2]
[366378272,1750219883043,-490.0,0.00017095,2]
[366378273,1750219883053,-864.12,0.00017095,2]
[366378274,1750219883062,-1981.22,0.00017095,2]
[366378275,1750219883072,-1380.2,0.00017095,2]
[366378276,1750219883082,-1373.66,0.00017095,2]
[366378277,1750219883091,-490.0,0.00017095,2]
[366378278,1750219883101,-151.0,0.00017095,2]
[366378279,1750219883111,-1984.06,0.00017095,2]
[366378280,1750219883122,-1006.32,0.00017095,2]
[366378281,1750219883134,-490.0,0.00017095,2]
[366378282,1750219883144,-1983.52,0.00017095,2]
[366378283,1750219883155,-171.325134,0.00017095,2]
[366378284,1750219883166,-1157.3,0.00017095,2]
[366378285,1750219883177,-1374.35,0.00017095,2]
[366378286,1750219883187,-803.86,0.00017095,2]
[366378287,1750219883197,-6170.72,0.00017095,2]
[366378288,1750219883207,-608.18,0.00017095,2]
[366378289,1750219883218,-151.0,0.00017095,2]
[366378290,1750219883228,-490.0,0.00017095,2]
[366378291,1750219883238,-490.0,0.00017095,2]
[366378292,1750219883248,-490.0,0.00017095,2]
[366378293,1750219883258,-901.46,0.00017095,2]
[366378294,1750219883268,-2612.99,0.00017095,2]
[366378295,1750219883278,-490.0,0.00017095,2]
[366378296,1750219883288,-590.95,0.00017095,2]
[366378297,1750219883298,-971.5,0.00017095,2]
[366378298,1750219883308,-781.57,0.00017095,2]
[366378299,1750219883318,-1003.97,0.00017095,2]
[366378300,1750219883329,-1565.28,0.00017095,2]
[366378301,1750219883339,-490.0,0.00017095,2]
[366378302,1750219883348,-8094.47,0.00017095,2]
[366378303,1750219883358,-1797.3,0.00017095,2]
[366378304,1750219883368,-490.0,0.00017095,2]
[366378305,1750219883380,-1149.99,0.00017095,2]
[366378306,1750219883390,-1229.7,0.00017095,2]
[366378307,1750219883400,-490.0,0.00017095,2]
[366378308,1750219883410,-490.0,0.00017095,2]
[366378309,1750219883421,-547.6,0.00017095,2]
[366378310,1750219883431,-1721.15,0.00017095,2]
[366378311,1750219883441,-3599.28,0.00017095,2]
[366378312,1750219883451,-3344.89,0.00017095,2]
[366378313,1750219883461,-1596.52,0.00017095,2]
[366378314,1750219883471,-490.0,0.00017095,2]
[366378315,1750219883480,-4323.1,0.00017095,2]
[366378316,1750219883491,-490.0,0.00017095,2]
[366378317,1750219883501,-674.2,0.00017095,2]
[366378318,1750219883511,-1267.05,0.00017095,2]
[366378319,1750219883521,-490.0,0.00017095,2]
[366378320,1750219883531,-6809.04,0.00017095,2]
[366378321,1750219883542,-490.0,0.00017095,2]
[366378322,1750219883553,-4687.22,0.00017095,2]
[366378323,1750219883563,-1114.15,0.00017095,2]
[366378324,1750219883573,-1254.49,0.00017095,2]
[366378325,1750219883583,-490.0,0.00017095,2]
[366378326,1750219883593,-508.82,0.00017095,2]
[366378327,1750219883604,-7960.2,0.00017095,2]
[366378328,1750219883614,-490.0,0.00017095,2]
[366378329,1750219883625,-490.0,0.00017095,2]
[366378330,1750219883635,-2327.57,0.00017095,2]
[366378331,1750219883644,-490.0,0.00017095,2]
[366378332,1750219883653,-490.0,0.00017095,2]
[366378333,1750219883662,-490.0,0.00017095,2]
[366378334,1750219883672,-14767.55,0.00017095,2]
[366378335,1750219883682,-846.08,0.00017095,2]
[366378336,1750219883692,-510.77,0.00017095,2]
[366378337,1750219883701,-1985.67,0.00017095,2]
[366378338,1750219883711,-490.0,0.00017095,2]
[366378339,1750219883720,-1192.34,0.00017095,2]
[366378340,1750219883732,-490.0,0.00017095,2]
[366378341,1750219883743,-913.57,0.00017095,2]
[366378342,1750219883753,-490.0,0.00017095,2]
[366378343,1750219883763,-3262.04,0.00017095,2]
[366378344,1750219883772,-1264.82,0.00017095,2]
[366378345,1750219883783,-526.27,0.00017095,2]
[366378346,1750219883792,-490.0,0.00017095,2]
[366378347,1750219883802,-2645.85,0.00017095,2]
[366378348,1750219883812,-521.37,0.00017095,2]
[366378349,1750219883823,-490.0,0.00017095,2]
[366378350,1750219883834,-490.0,0.00017095,2]
[366378351,1750219883844,-490.0,0.00017095,2]
[366378352,1750219883854,-2046.45,0.00017095,2]
[366378353,1750219883864,-635.0,0.00017095,2]
[366378354,1750219883874,-1845.32,0.00017095,2]
[366378355,1750219883885,-4271.2,0.00017095,2]